Cogmind - Beta 14 @@@ ROGUE MODE // 2024.09.24 @ 22:23:34 Player: WarpDagger Result: Destroyed by S-27 Virus with Autogun Performance ------------- Evolutions (3) 1500 Regions Visited (4) 800 Robots Destroyed (83) 415 Value Destroyed (2836) 2836 Prototype IDs (1) 20 Alien Tech Used (0) 0 Bonus (0) 0 TOTAL SCORE: 5571 Bonus ------- None Cogmind --------- Core Integrity 0/700 Matter 190/300 Energy 57/100 System Corruption 10% Temperature Hot (244) Movement Core (750) Ox14 Location -7/Factory Parts ------- > --- POWER (1) -------- (None) > --- PROPULSION (4) --- (None) > --- UTILITY (3) ------ High-capacity Storage Unit Improved Shield Generator Corruption Screen > --- WEAPON (5) ------- (None) > --- INVENTORY (20) --- Advanced Visual Processing Unit Improved Sensor Array Improved Terrain Scan Processor Improved Terrain Scan Processor Improved Terrain Scan Processor Improved Salvage Targeting Computer Advanced Targeting Computer Armor Integrity Analyzer Weapon Cycler Weapon Cycler Peak State ------------ > --- POWER ------------ Light Nuclear Core > --- PROPULSION ------- Armored Huge Wheel Armored Huge Wheel > --- UTILITY ---------- Improved Heat Sink High-capacity Storage Unit Medium Armor Plating > --- WEAPON ----------- Pulse Rifle Gauss Rifle Improved Light Cannon Improved Light Cannon Improved Light Cannon > --- INVENTORY -------- Light Nuclear Core Light Nuclear Core Advanced Visual Processing Unit Sensor Array Improved Sensor Array Improved Terrain Scan Processor Improved Terrain Scan Processor Improved Terrain Scan Processor Improved Terrain Scan Processor Improved Salvage Targeting Computer Improved Salvage Targeting Computer Advanced Targeting Computer Improved Shield Generator Advanced Beam Cannon Advanced Beam Cannon Advanced Beam Cannon Advanced Beam Cannon Advanced Beam Cannon Heavy Ion Cannon Heavy Ion Cannon [Rating: 44] Favorites ----------- Power Light Nuclear Core Engine Ion Engine Power Core Light Nuclear Core Propulsion Medium Treads Treads Medium Treads Leg Aluminum Leg Wheel Armored Huge Wheel Utility High-capacity Storage Unit Device Improved Heat Sink Storage High-capacity Storage Unit Processor Corruption Screen Protection Medium Armor Plating Weapon Improved Light Cannon Energy Gun Pulse Rifle Energy Cannon Advanced Beam Cannon Ballistic Gun Autogun Ballistic Cannon Improved Light Cannon Launcher Grenade Launcher Build | -11 -10 -9 -8 -7 ------- Run | Yrd Mat Mat Mat Fac Slots Evolved 6 | . . 2 2 2 Power . | . . . . . Propulsion 2 | . . . . 2 Utility 1 | . . . 1 . Weapon 3 | . . 2 1 . Parts Attached 68 | 6 9 10 11 32 Power 10 | 1 2 1 2 4 Engine 5 | 1 2 1 1 . Core 5 | . . . 1 4 Reactor . | . . . . . Propulsion 13 | 2 2 3 1 5 Treads 4 | . . 1 . 3 Leg 7 | 2 2 2 . 1 Wheel 2 | . . . 1 1 Hover . | . . . . . Flight . | . . . . . Utility 12 | 1 2 1 3 5 Device 4 | . . . 1 3 Storage 2 | 1 1 . . . Processor 2 | . 1 . . 1 Hackware . | . . . . . Protection 4 | . . 1 2 1 Artifact . | . . . . . Weapon 33 | 2 3 5 5 18 Energy Gun 8 | . . . 2 6 Energy Cannon 8 | . . . 1 7 Ballistic Gun 9 | 2 . 5 . 2 Ballistic Cannon 6 | . 1 . 2 3 Launcher 2 | . 2 . . . Special Weapon . | . . . . . Impact Weapon . | . . . . . Slashing Weapon . | . . . . . Piercing Weapon . | . . . . . Special Melee Weapon . | . . . . . Unidentified Prototypes 1 | . . . 1 . Parts Lost 31 | . 2 1 2 26 Power 6 | . 1 . . 5 Propulsion 5 | . . 1 . 4 Utility 6 | . . . 2 4 Weapon 14 | . 1 . . 13 Highest Loss Streak 7 | . 2 1 1 7 To Critical Strikes 1 | . . . . 1 Average Slot Usage (%) 82 | . 90 88 89 75 Engine 4 | . 13 11 5 . Core 3 | . . . 3 5 Treads 6 | . . 2 8 9 Leg 7 | . 27 17 . . Device 4 | . . . 6 6 Storage 9 | . 14 11 9 7 Processor 4 | . 13 1 . 2 Protection 5 | . . 9 10 4 Energy Gun 7 | . . . 12 10 Energy Cannon 6 | . . . 3 11 Ballistic Gun 9 | . 2 35 11 5 Ballistic Cannon 8 | . 12 . 16 5 Launcher 1 | . 5 . . . Peak Build Rating 44 | 6 9 20 33 44 Average Rating 26 | 3 6 16 24 36 On Entrance 13 | . 6 8 19 33 Naked Turns . | . . . . . Heaviest Build 81 | 14 54 66 78 81 Greatest Support 56 | 20 20 23 28 56 Greatest Overweight (x) 16 | . 4 6 3 16 Average Overweight (x) 1 | . 1 2 2 1 Largest Inventory Capacity 20 | 8 20 20 20 20 Average Capacity 19 | 6 19 20 20 20 Most Carried 20 | 5 20 20 20 20 Average Carried 16 | 1 7 19 19 17 Final Capacity 20 | 8 20 20 20 20 Final Carried 20 | 1 16 20 20 10 Class Distribution -------------------- 58% | Tank 23% | Mutant 15% | Gunner 3% | Scavenger-Gunner Dominant Class ---------------- Mutant | -10/Materials Tank | -9/Materials Tank | -8/Materials Tank | -7/Factory Resources | -11 -10 -9 -8 -7 ----------- Run | Yrd Mat Mat Mat Fac Matter Collected 2081 | 210 310 186 540 835 Remotely . | . . . . . Salvage Created 2682 | . 443 186 536 1517 Parts 156 | . 38 12 31 75 Haulers Intercepted . | . . . . . Recyclers Shooed 3 | . . . . 3 Parts Field Recycled . | . . . . . Retrieved Matter . | . . . . . Parts Self-Destructed . | . . . . . Prevented . | . . . . . Kills | -11 -10 -9 -8 -7 ------- Run | Yrd Mat Mat Mat Fac Combat Hostiles Destroyed 62 | . 12 4 14 32 Guns 25 | . . 4 7 14 Cannons 26 | . 3 . 7 16 AOE 9 | . 9 . . . Classes Destroyed 11 | . 5 1 3 2 Worker 5 | . 3 . . 2 Builder 2 | . . . 1 1 Recycler 3 | . 2 . . 1 Operator 1 | . . . 1 . Watcher 10 | . 3 . 3 4 Swarmer 17 | . 5 . 5 7 Grunt 27 | . 7 3 5 12 Brawler 1 | . . . . 1 Sentry 6 | . . 1 2 3 Hunter 3 | . . . 2 1 Programmer 8 | . . . . 8 Best Kill Streak 7 | . 7 2 4 5 Combat Bots Only 4 | . 4 2 3 4 Max Kills in Single Turn 4 | . 4 2 1 2 Gunslinging . | . . . . . Exploded 2 | . 2 . . . Melee . | . . . . . Uniques/NPCs Destroyed . | . . . . . Combat | -11 -10 -9 -8 -7 -------- Run | Yrd Mat Mat Mat Fac Hostile Shots Fired 588 | . 71 41 99 377 Missed 158 | . 22 12 23 101 Damage Taken 5619 | . 512 297 857 3953 Core 861 | . 123 . 38 700 Absorbed by Shields 5 | . . . . 5 Core Remaining (%) 85 | 100 50 100 93 . Volleys Fired 171 | . 32 10 38 91 Largest 5 | . 2 3 5 5 Hottest 300 | . 65 69 276 300 Shots Fired 565 | . 43 30 164 328 Gun 305 | . . 30 107 168 Cannon 249 | . 32 . 57 160 Launcher 11 | . 11 . . . Special . | . . . . . Kinetic 291 | . 32 30 129 100 Thermal 256 | . . . 35 221 Explosive 11 | . 11 . . . Electromagnetic 7 | . . . . 7 Robot Hit Streak 14 | . 3 3 5 14 Robot Miss Streak 10 | . 4 3 6 10 Penetration Max 1 | . . . . 1 Secondary Targets 1 | . . . . 1 Max Gunslinging Chain 1 | . . . . 1 Shots Hit Robots 265 | . 18 14 59 174 Core Hits 147 | . 23 6 33 85 Critical Kills 2 | . . . . 2 Critical Parts Destroyed . | . . . . . Critical Strikes 7 | . 2 . . 5 Burn 2 | . . . . 2 Meltdown 2 | . . . . 2 Blast 3 | . 2 . . 1 Melee Attacks . | . . . . . Impact . | . . . . . Slashing . | . . . . . Piercing . | . . . . . Sneak Attacks . | . . . . . Combat Hostiles . | . . . . . Follow-up Attacks . | . . . . . Damage Inflicted 6066 | 8 959 217 989 3893 Guns 2843 | . . 217 601 2025 Cannons 2444 | . 272 . 378 1794 Explosions 723 | . 687 . . 36 Melee . | . . . . . Ramming 56 | 8 . . 10 38 Kinetic 2358 | . 272 217 757 1112 Thermal 2942 | . . . 222 2720 Explosive 687 | . 687 . . . Electromagnetic 23 | . . . . 23 Impact . | . . . . . Slashing . | . . . . . Piercing . | . . . . . Highest Corruption 10 | . . 3 . 10 Average Corruption 7 | . . 2 . 7 Corruption Purged . | . . . . . Corruption Blocked 1 | . . . . 1 Effects 91 | . . 1 . 90 Message Errors 11 | . . . . 11 Matter Fused 20 | . . 1 . 19 Heat Flow Errors 13 | . . . . 13 Energy Discharges 13 | . . . . 13 Parts Rejected 2 | . . . . 2 Parts Fused 3 | . . . . 3 Data Loss (minor) 10 | . . . . 10 Data Loss (major) 5 | . . . . 5 Misfires 4 | . . . . 4 Alerts 3 | . . . . 3 Misdirections 2 | . . . . 2 Weapon Failures 5 | . . . . 5 Overload Shots . | . . . . . Overflow Damage 62 | . 32 . . 30 Projectiles 19 | . . . . 19 Explosions 43 | . 32 . . 11 Melee . | . . . . . Knockbacks 10 | . 5 . 3 2 Impact . | . . . . . Kinetic 10 | . 5 . 3 2 Secondary . | . . . . . Self-Inflicted Damage 20 | . 19 . . 1 Shots 1 | . 1 . . . Rammed 11 | . . . 3 8 Targets Rammed 16 | 1 1 . 4 10 Kicked 3 | 1 1 . . 1 Crushed 2 | . . . 1 1 Highest Temperature 525 | . 25 82 457 525 Average Temperature 153 | . 7 37 154 176 Received Heat Transfer 1269 | . 177 105 216 771 Effects 24 | . . . 8 16 Shutdowns 6 | . . . 3 3 Energy Bleed 1 | . . . . 1 Interference 11 | . . . 4 7 Matter Decay 2 | . . . . 2 Short Circuit 2 | . . . 1 1 Damage (minor) 1 | . . . . 1 Damage (core) 1 | . . . . 1 Siege Activations . | . . . . . Robots Corrupted . | . . . . . Combat Hostiles . | . . . . . Parts Fried . | . . . . . Impact Corruptions . | . . . . . Robots Melted 3 | . . . . 3 Combat Hostiles 2 | . . . . 2 Parts Melted 18 | . . . . 18 Heat Transferred 5304 | . . . 518 4786 Parts Sabotaged . | . . . . . Parts Stolen . | . . . . . Parts Stripped . | . . . . . Power Chain Reactions 1 | . . . . 1 Alert | -11 -10 -9 -8 -7 ------- Run | Yrd Mat Mat Mat Fac Peak Influence 364 | . 306 175 364 297 Initial 86 | . . 65 5 86 Average 133 | . 93 67 239 128 Maximum Alert Level 1 | . 1 . 1 1 Low Security (%) 74 | 100 86 100 44 73 Level 1 25 | . 13 . 55 26 Level 2 . | . . . . . Level 3 . | . . . . . Level 4 . | . . . . . Level 5 . | . . . . . High Security . | . . . . . Max Security . | . . . . . Squads Dispatched 15 | . 1 . 5 9 Investigation 1 | . 1 . . . Extermination 7 | . . . . 7 Reinforcement 4 | . . . 2 2 Assault . | . . . . . Garrison 3 | . . . 3 . Intercept . | . . . . . Searches Triggered . | . . . . . Construction Impeded 1 | . . . . 1 Haulers Reinforced . | . . . . . Active Scanning Responses . | . . . . . Cargo Convoy Interrupts . | . . . . . Stealth | -11 -10 -9 -8 -7 --------- Run | Yrd Mat Mat Mat Fac Distress Signals 8 | . . 1 2 5 Communications Jammed . | . . . . . Distress Signals . | . . . . . Times Spotted 97 | . 16 11 23 47 Peak Tracking Total 5 | . 4 5 4 5 Tactical Retreats 3 | . . 1 1 1 Traps | -11 -10 -9 -8 -7 ------- Run | Yrd Mat Mat Mat Fac Traps Triggered 7 | . 1 2 . 4 Indirectly . | . . . . . Trap Hack Attempts . | . . . . . Triggered . | . . . . . Disarmed . | . . . . . Reprogrammed . | . . . . . Reused . | . . . . . Traps Extracted . | . . . . . Installed . | . . . . . Triggered . | . . . . . Machines | -11 -10 -9 -8 -7 ---------- Run | Yrd Mat Mat Mat Fac Machines Disabled 13 | . 4 1 6 2 Max in Single Turn 2 | . 2 1 1 1 Machines Repaired . | . . . . . Machines Dismantled . | . . . . . Machines Sabotaged . | . . . . . Overloaded Fab Kills . | . . . . . Hacking | -11 -10 -9 -8 -7 --------- Run | Yrd Mat Mat Mat Fac Machines Accessed . | . . . . . Terminals . | . . . . . Fabricators . | . . . . . Repair Stations . | . . . . . Recycling Units . | . . . . . Scanalyzers . | . . . . . Garrison Access . | . . . . . Total Hacks . | . . . . . Successful . | . . . . . Failed . | . . . . . Catastrophic . | . . . . . Database Lockouts . | . . . . . Manual . | . . . . . Terminals . | . . . . . Fabricators . | . . . . . Repair Stations . | . . . . . Recycling Units . | . . . . . Scanalyzers . | . . . . . Garrison Access . | . . . . . Terminal Hacks . | . . . . . Fabricator Hacks . | . . . . . Repair Station Hacks . | . . . . . Recycling Unit Hacks . | . . . . . Scanalyzer . | . . . . . Garrison Access Hacks . | . . . . . Unauthorized Hacks . | . . . . . Terminals . | . . . . . Fabricators . | . . . . . Repair Stations . | . . . . . Recycling Units . | . . . . . Scanalyzers . | . . . . . Garrison Access . | . . . . . Data Cores Recovered . | . . . . . Used . | . . . . . Hacking Detections . | . . . . . Full Trace Events . | . . . . . Feedback Events . | . . . . . Feedback Blocked . | . . . . . Robot Schematics Acquired . | . . . . . Robots Built . | . . . . . Authchips . | . . . . . Time . | . . . . . Total Robot Build Rating . | . . . . . Part Schematics Acquired . | . . . . . Parts Built . | . . . . . Authchips . | . . . . . Time . | . . . . . Total Part Build Rating . | . . . . . Parts Repaired . | . . . . . Time . | . . . . . Parts Recycled . | . . . . . Recycled Matter . | . . . . . Retrieved Matter . | . . . . . Retrieved Components . | . . . . . Parts Scanalyzed . | . . . . . Part Schematics Acquired . | . . . . . Parts Damaged . | . . . . . Bothacking | -11 -10 -9 -8 -7 ------------ Run | Yrd Mat Mat Mat Fac Used RIF Installer . | . . . . . Robots Hacked . | . . . . . Non-combat . | . . . . . Combat . | . . . . . Robot Hacks Applied . | . . . . . Relay Couplers Released . | . . . . . Fabnet Peak Effective % . | . . . . . Robots Rewired . | . . . . . Allies Hacked . | . . . . . Hacks Repelled . | . . . . . Allies | -11 -10 -9 -8 -7 -------- Run | Yrd Mat Mat Mat Fac Total Allies . | . . . . . Largest Group . | . . . . . Highest-Rated Group . | . . . . . Highest-Rated Ally . | . . . . . Total Orders . | . . . . . Ally Attacks . | . . . . . Total Damage . | . . . . . Kills . | . . . . . Allies Corrupted . | . . . . . Allies Melted . | . . . . . Intel | -11 -10 -9 -8 -7 ------- Run | Yrd Mat Mat Mat Fac Robot Analysis Total . | . . . . . Derelict Logs Recovered . | . . . . . Drone Launches . | . . . . . Drone Recoveries . | . . . . . Exploration | -11 -10 -9 -8 -7 ------------- Run | Yrd Mat Mat Mat Fac Turns Passed 5393 | 49 1021 653 990 2680 Spaces Moved 1720 | 43 360 182 218 917 Core 29 | 23 . . . 6 Treads 940 | . . 41 205 694 Legs 565 | 20 360 141 . 44 Wheels 186 | . . . 13 173 Hover . | . . . . . Flight . | . . . . . Fastest Speed 50 | 50 120 260 130 115 Average Speed 265 | 82 247 319 376 243 Slowest Speed 850 | 120 400 540 400 850 Overloaded Moves . | . . . . . Propulsion Burnouts . | . . . . . Robots Hopped . | . . . . . Cave-ins Triggered . | . . . . . Exploration Rate (%) 28 | 3 66 19 22 32 Regions Visited 4 Branch Regions . Pre-discovered Areas . | . . . . . Known Exits Taken 1 | . 1 . . . Unknown Exits Taken 3 | 1 . 1 1 . Scrap Searched . | . . . . . Spaces Dug . | . . . . . Terrain Destroyed 55 | . 39 . 6 10 Melee . | . . . . . Projectile 14 | . . . 6 8 AOE 41 | . 39 . . 2 Terrain Rammed . | . . . . . Walls Destroyed . | . . . . . Machines Disabled . | . . . . . Actions | -11 -10 -9 -8 -7 --------- Run | Yrd Mat Mat Mat Fac Total 2192 | 56 455 244 297 1140 Wait 61 | . 13 8 . 40 Move 1716 | 42 359 181 217 917 Hop . | . . . . . Pick Up 102 | 7 28 21 15 31 Fast Attach . | . . . . . Attach 51 | 6 6 6 6 27 Detach 2 | . 2 . . . Swap 17 | . 3 4 5 5 Drop 55 | . 11 14 12 18 Fire 171 | . 32 10 38 91 Melee . | . . . . . Ram 3 | . . . . 3 Kick 3 | 1 1 . . 1 Crush 11 | . . . 4 7 Escape Stasis . | . . . . . Rewire . | . . . . . Trap . | . . . . . Miscellaneous . | . . . . . Route ------- -11/Scrapyard -10/Materials (discovered 2 exits: *Mat / *Min) -9/Materials -8/Materials -7/Factory History --------- Turn | Location | Event 6 | -11/Scrapyard | Discovered new exit (range 15) 50 | -11/Scrapyard | Entered Materials 310 | -10/Materials | Build established: Mutant 536 | -10/Materials | Discovered new exit (range 6) 746 | -10/Materials | Discovered new exit (range 14) 954 | -10/Materials | Identified exit to Mines 1069 | -10/Materials | Identified exit to Materials 1071 | -10/Materials | Entered another Materials area 1071 | -9/Materials | Evolved 2 slots: Weapon x2 1460 | -9/Materials | Build established: Tank 1704 | -9/Materials | Discovered new exit (range 4) 1724 | -9/Materials | Entered another Materials area 1724 | -8/Materials | Evolved 2 slots: Utility x1, Weapon x1 1940 | -8/Materials | Garrison activated, responded to threat 2618 | -8/Materials | Discovered new exit (range 16) 2714 | -8/Materials | Entered Factory 2714 | -7/Factory | Evolved 2 slots: Propulsion x2 4039 | -7/Factory | System corruption reached 10% 4304 | -7/Factory | Core integrity fell below 50% 4331 | -7/Factory | Lost 3 parts (1p1u1w) 4609 | -7/Factory | Build established: Gunner 4683 | -7/Factory | Lost 4 parts (1p1n2w) 5080 | -7/Factory | Core integrity fell below 20% 5118 | -7/Factory | Lost 7 parts (1p1n1u4w) 5394 | -7/Factory | Destroyed by S-27 Virus with Autogun Last Messages --------------- U-05 Engineer lays Concrete. K-01 Serf collects debris. U-05 Engineer lays Concrete. U-05 Engineer destroyed. U-05 Engineer lays Concrete. U-05 Engineer destroyed. Destroyed VTOL Module. U-05 Engineer lays Concrete. K-01 Serf collects debris. Arc Projector destroyed. U-05 Engineer lays Concrete. Pulse Rifle destroyed. U-05 Engineer lays Concrete. K-01 Serf collects debris. Aluminum Leg destroyed. Flak Gun destroyed. Lgt. Nuclear Core destroyed. K-01 Serf collects debris. Pulse Rifle destroyed. R-06 Scavenger collects Structural Scanner. Map ----- +----------------------------------------------------+ | ?????????????????????????????????????????????????? | | ?????????????????????????????????????????????????? | | ?????????????????????????????????????????????????? | | ?????????????????????????????????????????????????? | | ?????????????????????????????????????????????????? | | ?????????????????????????????????????????????????? | | ?????????????????????????????????????????????????? | | ?????????????????????????????????????????????????? | | ???????????????????????????? ????????????????????? | | ???????????????????????????# ????????????????????? | | ???????????????????????????#[????????????????????? | | ???????????????????????????# ????????????????????? | | ???????????????????????????# ???????????????????? | | ???????????????????????????# ???????????????????? | | ???????????????????????????# ????"""????????????? | | ???????????????????????????# """ """????????????? | | ???????????????????????????# ????????????? | | ??????????????????#????????# """ """ #??????????? | | ??????????????????# ???????# """ """ #??????????? | | ??????????????????# ??????# """ """ #??????????? | | ??????????????????? ! ?????# ????????????? | | ??????????? ???? ????# ! =??????????????? | | ????????????# ??? ???? ????????????????? | | ????????????# *k=###+######+#############+##### | | ????????????# ss%s | | ????????????# =% r @ | | ????????????# | | | ????????????# =%* / | | ????????????# !! rk | | ????????????####+######;########## | | ??????????????????????# ?????????# """ """ """ | | ??????????????????????# ?????????# """ """ """ | | ??????????????????????#??????????# """ """ """ ! | | ?????????????????????????????????# """ """ """ ! | | ?????????????????????????????????# | | ?????????????????????????????????# | | ?????????????????????????????????####+############ | | ?????????????????????????????????????????????????? | | ?????????????????????????????????????????????????? | | ?????????????????????????????????????????????????? | | ?????????????????????????????????????????????????? | | ?????????????????????????????????????????????????? | | ?????????????????????????????????????????????????? | | ?????????????????????????????????????????????????? | | ????????????????????????????????????????????????# | | ????????????????????????????????????????????????# | | ????????????????????????????????????????????????# | | ????????????????????????????????????????????????# | | ????????????????????????????????????????????????? | | ?????????????????????????????????????????????????? | +----------------------------------------------------+ Best States ------------- Heat Dissipation 48 Energy Generation 14 Energy Capacity 265 Matter Stores 300 Matter Capacity 300 Sight Range 16 Terrain Scan Density 10 Corruption Block 8 Armor Coverage 450 Evasion (%) 55 Recoil Reduction 2 Item Schematics ----------------- None Robot Schematics ------------------ None Fabricated ------------ Nothing Alien Tech Used ----------------- None Achievements -------------- None Challenges ------------ None Game ------ Seed EncryptedDrainedStick Manual? 0 Play Time 00:35:34 Cumulative 8.0 hours Start 2024.09.24 @ 21:45:15 End 2024.09.24 @ 22:23:34 Sessions 1 Manual Loads 0 Difficulty Rogue Special Mode None Game No. 23 Rogue 23 Adventurer 0 Explorer 0 Win Type - Total 0 Types 0/0/0/0/0/0/0/0/0 Lore% 3 Gallery% 23 Achievement% 17 Wizard Run 0 Options --------- Layout 1 ASCII 0 Keyboard 0 Movement Numpad Keybinds 0 Fullscreen 1 Font 24/Smallcaps Map View 50x35 Zoom Use 0% Tactical HUD 0 Map Filters NONE Filters NONE Steam 1 RUN: 6a6dd5ec-c306-44f0-8f67-02cec0464c52